[Event "Titled Tuesday Blitz November 08 Early 2022"]
[White "Goncalves, Davi Sulzbacher"]
[Black "Onslow, Alfie"]
[WhiteFideId "2154510"]
[BlackFideId "436976"]
[WhiteElo "2182"]
[BlackElo "2015"]
[Result "1-0"]
[Round "03"]
[TimeControl "180+1"]
[Date "2022.11.09"]
[WhiteClock "0:00:56"]
[BlackClock "0:00:08"]

1. Nf3 {[%clk 0:03:00]}  c5 {[%clk 0:02:59]} 2. g3 {[%clk 0:03:01]}  Nc6 {[%clk 0:02:58]} 3. Bg2 {[%clk 0:03:02]}  e5 {[%clk 0:02:58]} 4. O-O {[%clk 0:03:03]}  Nf6 {[%clk 0:02:58]} 5. d3 {[%clk 0:03:04]}  d5 {[%clk 0:02:58]} 6. c4 {[%clk 0:03:04]}  Be7 {[%clk 0:02:53]} 7. cxd5 {[%clk 0:03:04]}  Nxd5 {[%clk 0:02:54]} 8. Nc3 {[%clk 0:03:05]}  Be6 {[%clk 0:02:53]} 9. Bd2 {[%clk 0:03:05]}  O-O {[%clk 0:02:52]} 10. Ne1 {[%clk 0:03:05]}  Nxc3 {[%clk 0:02:48]} 11. Bxc3 {[%clk 0:03:05]}  Bd5 {[%clk 0:02:48]} 12. Nf3 {[%clk 0:03:04]}  f6 {[%clk 0:02:46]} 13. a3 {[%clk 0:03:00]}  Rc8 {[%clk 0:02:42]} 14. Rc1 {[%clk 0:02:59]}  b5 {[%clk 0:02:41]} 15. a4 {[%clk 0:02:51]}  b4 {[%clk 0:02:37]} 16. Bd2 {[%clk 0:02:52]}  Nd4 {[%clk 0:02:36]} 17. Nxd4 {[%clk 0:02:46]}  Bxg2 {[%clk 0:02:36]} 18. Ne6 {[%clk 0:02:20]}  Qd5 {[%clk 0:02:36]} 19. Nxf8 {[%clk 0:02:20]}  Bxf1 {[%clk 0:02:36]} 20. Qxf1 {[%clk 0:02:20]}  Rxf8 {[%clk 0:02:29]} 21. Rc4 {[%clk 0:02:18]}  a5 {[%clk 0:02:24]} 22. Qg2 {[%clk 0:02:19]}  Rd8 {[%clk 0:02:19]} 23. Qxd5+ {[%clk 0:02:17]}  Rxd5 {[%clk 0:02:20]} 24. Kg2 {[%clk 0:02:14]}  Kf7 {[%clk 0:02:20]} 25. Be3 {[%clk 0:02:11]}  Ke6 {[%clk 0:02:19]} 26. f4 {[%clk 0:02:07]}  exf4 {[%clk 0:01:49]} 27. gxf4 {[%clk 0:02:08]}  f5 {[%clk 0:01:47]} 28. Kf3 {[%clk 0:02:07]}  Kd6 {[%clk 0:01:44]} 29. Bf2 {[%clk 0:01:57]}  Bf6 {[%clk 0:01:43]} 30. b3 {[%clk 0:01:56]}  h6 {[%clk 0:01:07]} 31. h3 {[%clk 0:01:52]}  g5 {[%clk 0:01:04]} 32. Bg3 {[%clk 0:01:46]}  Kc6 {[%clk 0:01:00]} 33. Rc1 {[%clk 0:01:38]}  Bc3 {[%clk 0:00:51]} 34. Rd1 {[%clk 0:01:37]}  Rd8 {[%clk 0:00:41]} 35. Bf2 {[%clk 0:01:28]}  Re8 {[%clk 0:00:21]} 36. Rg1 {[%clk 0:01:19]}  Bf6 {[%clk 0:00:18]} 37. Rc1 {[%clk 0:01:14]}  Bc3 {[%clk 0:00:18]} 38. e4 {[%clk 0:01:11]}  fxe4+ {[%clk 0:00:12]} 39. dxe4 {[%clk 0:01:12]}  gxf4 {[%clk 0:00:12]} 40. Rg1 {[%clk 0:01:12]}  Re6 {[%clk 0:00:06]} 41. Rg8 {[%clk 0:01:12]}  Bd2 {[%clk 0:00:05]} 42. Rc8+ {[%clk 0:01:11]}  Kd6 {[%clk 0:00:04]} 43. Rxc5 {[%clk 0:01:10]}  Be3 {[%clk 0:00:04]} 44. Rd5+ {[%clk 0:01:09]}  Kc6 {[%clk 0:00:04]} 45. Bxe3 {[%clk 0:01:07]}  fxe3 {[%clk 0:00:05]} 46. Kxe3 {[%clk 0:01:07]}  Rg6 {[%clk 0:00:06]} 47. Rxa5 {[%clk 0:01:06]}  Rg3+ {[%clk 0:00:06]} 48. Kd4 {[%clk 0:01:06]}  Rxb3 {[%clk 0:00:06]} 49. Ra6+ {[%clk 0:01:07]}  Kb7 {[%clk 0:00:06]} 50. Rxh6 {[%clk 0:01:08]}  Ra3 {[%clk 0:00:07]} 51. Kc4 {[%clk 0:01:04]}  Rxa4 {[%clk 0:00:06]} 52. Kb5 {[%clk 0:01:05]}  b3 {[%clk 0:00:04]} 53. Rb6+ {[%clk 0:00:57]}  Kc7 {[%clk 0:00:04]} 54. Kxa4 {[%clk 0:00:52]}  Kxb6 {[%clk 0:00:03]} 55. Kxb3 {[%clk 0:00:52]}  Kc5 {[%clk 0:00:03]} 56. Kc3 {[%clk 0:00:53]}  Kd6 {[%clk 0:00:03]} 57. Kd4 {[%clk 0:00:53]}  Ke6 {[%clk 0:00:03]} 58. h4 {[%clk 0:00:53]}  Kf6 {[%clk 0:00:03]} 59. Kd5 {[%clk 0:00:53]}  Kg6 {[%clk 0:00:04]} 60. Kd6 {[%clk 0:00:53]}  Kh5 {[%clk 0:00:05]} 61. e5 {[%clk 0:00:54]}  Kxh4 {[%clk 0:00:06]} 62. e6 {[%clk 0:00:55]}  Kg5 {[%clk 0:00:07]} 63. e7 {[%clk 0:00:55]}  Kg6 {[%clk 0:00:07]} 64. e8=Q+ {[%clk 0:00:56]}  Kf5 {[%clk 0:00:08]} 65. Qe5+ {[%clk 0:00:56]} 1-0


[Site "https://www.chess.com"]

[Event "Titled Tuesday Blitz November 08 Early 2022"]
[White "Gu, Xiaobing"]
[Black "Adnan, Habib"]
[WhiteFideId "8602611"]
[BlackFideId "11202270"]
[WhiteElo "2174"]
[BlackElo "2110"]
[Result "0-1"]
[Round "03"]
[TimeControl "180+1"]
[Date "2022.11.09"]
[WhiteClock "0:00:01"]
[BlackClock "0:00:12"]

1. e4 {[%clk 0:03:00]}  c5 {[%clk 0:02:42]} 2. Nf3 {[%clk 0:02:59]}  Nc6 {[%clk 0:02:42]} 3. Bb5 {[%clk 0:02:59]}  g6 {[%clk 0:02:42]} 4. Bxc6 {[%clk 0:02:59]}  bxc6 {[%clk 0:02:42]} 5. O-O {[%clk 0:02:52]}  Bg7 {[%clk 0:02:41]} 6. Re1 {[%clk 0:02:53]}  e5 {[%clk 0:02:38]} 7. c3 {[%clk 0:02:51]}  Ne7 {[%clk 0:02:30]} 8. d4 {[%clk 0:02:49]}  cxd4 {[%clk 0:02:31]} 9. cxd4 {[%clk 0:02:48]}  exd4 {[%clk 0:02:31]} 10. Nxd4 {[%clk 0:02:48]}  O-O {[%clk 0:02:23]} 11. Nc3 {[%clk 0:02:48]}  Bb7 {[%clk 0:02:17]} 12. e5 {[%clk 0:02:21]}  d6 {[%clk 0:01:41]} 13. exd6 {[%clk 0:01:55]}  Qxd6 {[%clk 0:01:41]} 14. Be3 {[%clk 0:01:55]}  Nd5 {[%clk 0:01:39]} 15. Ne4 {[%clk 0:01:50]}  Qb4 {[%clk 0:01:31]} 16. a3 {[%clk 0:01:42]}  Nxe3 {[%clk 0:01:27]} 17. axb4 {[%clk 0:01:36]}  Nxd1 {[%clk 0:01:27]} 18. Raxd1 {[%clk 0:01:37]}  Rfe8 {[%clk 0:01:15]} 19. Nb3 {[%clk 0:01:23]}  Ba6 {[%clk 0:00:54]} 20. Nbc5 {[%clk 0:01:19]}  Bb5 {[%clk 0:00:50]} 21. b3 {[%clk 0:01:11]}  Rad8 {[%clk 0:00:42]} 22. Ra1 {[%clk 0:00:46]}  f5 {[%clk 0:00:34]} 23. Ng5 {[%clk 0:00:26]}  Bxa1 {[%clk 0:00:32]} 24. Rxa1 {[%clk 0:00:24]}  Re7 {[%clk 0:00:33]} 25. Nge6 {[%clk 0:00:22]}  Rd6 {[%clk 0:00:31]} 26. Nf4 {[%clk 0:00:17]}  Kf7 {[%clk 0:00:31]} 27. h4 {[%clk 0:00:16]}  Rd4 {[%clk 0:00:29]} 28. Nh3 {[%clk 0:00:16]}  Rxh4 {[%clk 0:00:24]} 29. f4 {[%clk 0:00:15]}  h6 {[%clk 0:00:22]} 30. Kf2 {[%clk 0:00:15]}  Rg4 {[%clk 0:00:21]} 31. Kf3 {[%clk 0:00:13]}  Be2+ {[%clk 0:00:17]} 32. Kf2 {[%clk 0:00:13]}  Bb5 {[%clk 0:00:17]} 33. Kf3 {[%clk 0:00:13]}  g5 {[%clk 0:00:18]} 34. g3 {[%clk 0:00:10]}  Rc7 {[%clk 0:00:15]} 35. Nf2 {[%clk 0:00:09]}  Re7 {[%clk 0:00:12]} 36. Nxg4 {[%clk 0:00:08]}  Be2+ {[%clk 0:00:12]} 37. Kf2 {[%clk 0:00:08]}  Bxg4 {[%clk 0:00:13]} 38. Nd3 {[%clk 0:00:07]}  Re2+ {[%clk 0:00:12]} 39. Kf1 {[%clk 0:00:07]}  Re3 {[%clk 0:00:12]} 40. Ne5+ {[%clk 0:00:07]}  Ke6 {[%clk 0:00:11]} 41. Rxa7 {[%clk 0:00:05]}  Rxb3 {[%clk 0:00:11]} 42. Ra6 {[%clk 0:00:05]}  Kd5 {[%clk 0:00:11]} 43. Ra5+ {[%clk 0:00:05]}  Ke4 {[%clk 0:00:11]} 44. Rc5 {[%clk 0:00:05]}  Rxg3 {[%clk 0:00:10]} 45. Rc4+ {[%clk 0:00:04]}  Kd5 {[%clk 0:00:10]} 46. Rc5+ {[%clk 0:00:04]}  Kd4 {[%clk 0:00:10]} 47. Rxc6 {[%clk 0:00:04]}  gxf4 {[%clk 0:00:10]} 48. Nxg4 {[%clk 0:00:03]}  fxg4 {[%clk 0:00:11]} 49. b5 {[%clk 0:00:03]}  f3 {[%clk 0:00:11]} 50. b6 {[%clk 0:00:03]}  Rg2 {[%clk 0:00:11]} 51. b7 {[%clk 0:00:04]}  Rb2 {[%clk 0:00:12]} 52. Rd6+ {[%clk 0:00:03]}  Ke3 {[%clk 0:00:12]} 53. Re6+ {[%clk 0:00:03]}  Kf4 {[%clk 0:00:12]} 54. Rxh6 {[%clk 0:00:02]}  Kg3 {[%clk 0:00:12]} 55. Ke1 {[%clk 0:00:01]}  Rxb7 {[%clk 0:00:12]} 0-1


[Site "https://www.chess.com"]

[Event "Titled Tuesday Blitz November 08 Early 2022"]
[White "Guliev, Logman"]
[Black "Weetik, Vjacheslav"]
[WhiteFideId "13400061"]
[BlackFideId "4153472"]
[WhiteElo "2161"]
[BlackElo "2469"]
[Result "0-1"]
[Round "03"]
[TimeControl "180+1"]
[Date "2022.11.09"]
[WhiteClock "0:00:03"]
[BlackClock "0:00:14"]

1. d4 {[%clk 0:03:00]}  Nf6 {[%clk 0:02:59]} 2. Bg5 {[%clk 0:02:59]}  d5 {[%clk 0:02:59]} 3. Bxf6 {[%clk 0:02:58]}  gxf6 {[%clk 0:02:59]} 4. Nf3 {[%clk 0:02:57]}  c5 {[%clk 0:02:48]} 5. e3 {[%clk 0:02:42]}  Nc6 {[%clk 0:02:47]} 6. c3 {[%clk 0:02:40]}  e5 {[%clk 0:02:46]} 7. Nbd2 {[%clk 0:02:35]}  Qb6 {[%clk 0:02:24]} 8. Qc2 {[%clk 0:02:14]}  cxd4 {[%clk 0:02:05]} 9. exd4 {[%clk 0:01:51]}  Be6 {[%clk 0:01:56]} 10. Nb3 {[%clk 0:01:40]}  O-O-O {[%clk 0:01:47]} 11. a4 {[%clk 0:01:27]}  Kb8 {[%clk 0:01:33]} 12. a5 {[%clk 0:01:19]}  Qc7 {[%clk 0:01:33]} 13. a6 {[%clk 0:01:18]}  b6 {[%clk 0:01:33]} 14. Bb5 {[%clk 0:01:16]}  Bd6 {[%clk 0:01:31]} 15. Nh4 {[%clk 0:00:55]}  Rhg8 {[%clk 0:01:21]} 16. g3 {[%clk 0:00:46]}  e4 {[%clk 0:01:18]} 17. Ng2 {[%clk 0:00:38]}  f5 {[%clk 0:01:01]} 18. O-O-O {[%clk 0:00:31]}  Ne7 {[%clk 0:00:55]} 19. Kb1 {[%clk 0:00:30]}  Ng6 {[%clk 0:00:48]} 20. h4 {[%clk 0:00:28]}  f4 {[%clk 0:00:45]} 21. h5 {[%clk 0:00:28]}  f3 {[%clk 0:00:46]} 22. Ne3 {[%clk 0:00:19]}  Ne7 {[%clk 0:00:43]} 23. Rc1 {[%clk 0:00:17]}  f5 {[%clk 0:00:40]} 24. c4 {[%clk 0:00:15]}  f4 {[%clk 0:00:41]} 25. c5 {[%clk 0:00:15]}  fxe3 {[%clk 0:00:38]} 26. cxd6 {[%clk 0:00:15]}  Qxc2+ {[%clk 0:00:34]} 27. Rxc2 {[%clk 0:00:16]}  Rxd6 {[%clk 0:00:35]} 28. fxe3 {[%clk 0:00:16]}  Nf5 {[%clk 0:00:33]} 29. Rc3 {[%clk 0:00:10]}  Nxg3 {[%clk 0:00:27]} 30. Rhc1 {[%clk 0:00:11]}  f2 {[%clk 0:00:22]} 31. Nd2 {[%clk 0:00:10]}  Rc8 {[%clk 0:00:20]} 32. Rxc8+ {[%clk 0:00:08]}  Bxc8 {[%clk 0:00:20]} 33. Nf1 {[%clk 0:00:06]}  Nxf1 {[%clk 0:00:19]} 34. Rxf1 {[%clk 0:00:06]}  Rf6 {[%clk 0:00:19]} 35. Rh1 {[%clk 0:00:04]}  Rf3 {[%clk 0:00:15]} 36. Bf1 {[%clk 0:00:03]}  Rxe3 {[%clk 0:00:15]} 37. Ka2 {[%clk 0:00:03]}  Re1 {[%clk 0:00:15]} 38. h6 {[%clk 0:00:03]}  e3 {[%clk 0:00:14]} 0-1


[Site "https://www.chess.com"]

[Event "Titled Tuesday Blitz November 08 Early 2022"]
[White "Harsh Suresh"]
[Black "Saucey, Michel"]
[WhiteFideId "45018464"]
[BlackFideId "601845"]
[WhiteElo "2227"]
[BlackElo "2253"]
[Result "1-0"]
[Round "03"]
[TimeControl "180+1"]
[Date "2022.11.09"]
[WhiteClock "0:00:16"]
[BlackClock "0:00:01"]

1. e4 {[%clk 0:03:00]}  c5 {[%clk 0:02:59]} 2. Nc3 {[%clk 0:03:00]}  Nc6 {[%clk 0:02:58]} 3. Bb5 {[%clk 0:02:59]}  Nd4 {[%clk 0:02:58]} 4. Bc4 {[%clk 0:02:59]}  Nf6 {[%clk 0:02:46]} 5. Nf3 {[%clk 0:03:00]}  e6 {[%clk 0:02:44]} 6. O-O {[%clk 0:03:00]}  a6 {[%clk 0:02:42]} 7. e5 {[%clk 0:02:56]}  d5 {[%clk 0:02:37]} 8. exf6 {[%clk 0:02:46]}  dxc4 {[%clk 0:02:36]} 9. fxg7 {[%clk 0:02:46]}  Bxg7 {[%clk 0:02:36]} 10. d3 {[%clk 0:02:47]}  cxd3 {[%clk 0:02:31]} 11. cxd3 {[%clk 0:02:47]}  O-O {[%clk 0:01:59]} 12. Be3 {[%clk 0:02:35]}  b6 {[%clk 0:01:56]} 13. Bxd4 {[%clk 0:02:27]}  cxd4 {[%clk 0:01:54]} 14. Ne4 {[%clk 0:02:24]}  f5 {[%clk 0:01:49]} 15. Ned2 {[%clk 0:02:21]}  Bb7 {[%clk 0:01:40]} 16. Re1 {[%clk 0:02:20]}  Bd5 {[%clk 0:01:39]} 17. Rc1 {[%clk 0:02:06]}  b5 {[%clk 0:01:37]} 18. Nb3 {[%clk 0:02:04]}  Qb6 {[%clk 0:01:32]} 19. Nc5 {[%clk 0:01:52]}  Rad8 {[%clk 0:01:10]} 20. b4 {[%clk 0:01:41]}  h6 {[%clk 0:00:55]} 21. a3 {[%clk 0:01:16]}  a5 {[%clk 0:00:44]} 22. Ne5 {[%clk 0:01:13]}  axb4 {[%clk 0:00:41]} 23. Ned7 {[%clk 0:01:01]}  Qd6 {[%clk 0:00:40]} 24. Nxf8 {[%clk 0:01:01]}  Rxf8 {[%clk 0:00:39]} 25. axb4 {[%clk 0:01:01]}  e5 {[%clk 0:00:37]} 26. Ra1 {[%clk 0:00:58]}  Qg6 {[%clk 0:00:28]} 27. g3 {[%clk 0:00:47]}  e4 {[%clk 0:00:23]} 28. Ra6 {[%clk 0:00:44]}  Qf7 {[%clk 0:00:17]} 29. Rd6 {[%clk 0:00:38]}  Re8 {[%clk 0:00:11]} 30. Rd7 {[%clk 0:00:27]}  Re7 {[%clk 0:00:11]} 31. Rxe7 {[%clk 0:00:27]}  Qxe7 {[%clk 0:00:11]} 32. Qh5 {[%clk 0:00:25]}  e3 {[%clk 0:00:10]} 33. Qxf5 {[%clk 0:00:22]}  Bf7 {[%clk 0:00:04]} 34. Ne4 {[%clk 0:00:19]}  Be6 {[%clk 0:00:02]} 35. Qc5 {[%clk 0:00:16]}  Qf7 {[%clk 0:00:01]} 36. fxe3 {[%clk 0:00:16]} 1-0


[Site "https://www.chess.com"]

[Event "Titled Tuesday Blitz November 08 Early 2022"]
[White "Harsha Bharathakoti"]
[Black "Tarigan, Gilbert Elroy"]
[WhiteFideId "5078776"]
[BlackFideId "7108133"]
[WhiteElo "2523"]
[BlackElo "2284"]
[Result "1-0"]
[Round "03"]
[TimeControl "180+1"]
[Date "2022.11.08"]
[WhiteClock "0:00:52"]
[BlackClock "0:00:01"]

1. c4 {[%clk 0:03:00]}  Nf6 {[%clk 0:02:55]} 2. Nc3 {[%clk 0:02:59]}  c6 {[%clk 0:02:54]} 3. d4 {[%clk 0:02:57]}  d5 {[%clk 0:02:53]} 4. cxd5 {[%clk 0:02:57]}  cxd5 {[%clk 0:02:53]} 5. Bf4 {[%clk 0:02:57]}  a6 {[%clk 0:02:53]} 6. e3 {[%clk 0:02:56]}  Nc6 {[%clk 0:02:53]} 7. Be2 {[%clk 0:02:57]}  e6 {[%clk 0:02:08]} 8. Rc1 {[%clk 0:02:45]}  Bd6 {[%clk 0:02:06]} 9. Bxd6 {[%clk 0:02:45]}  Qxd6 {[%clk 0:02:07]} 10. f4 {[%clk 0:02:46]}  O-O {[%clk 0:02:04]} 11. Nf3 {[%clk 0:02:45]}  Bd7 {[%clk 0:02:02]} 12. O-O {[%clk 0:02:43]}  Ne7 {[%clk 0:02:03]} 13. Ne5 {[%clk 0:02:31]}  Rfc8 {[%clk 0:02:00]} 14. Bd3 {[%clk 0:02:28]}  Qb6 {[%clk 0:01:54]} 15. g4 {[%clk 0:02:12]}  Qxb2 {[%clk 0:01:48]} 16. g5 {[%clk 0:01:51]}  Ne4 {[%clk 0:01:39]} 17. Nxe4 {[%clk 0:01:39]}  dxe4 {[%clk 0:01:39]} 18. Bxe4 {[%clk 0:01:39]}  Rxc1 {[%clk 0:01:21]} 19. Qxc1 {[%clk 0:01:40]}  Qxc1 {[%clk 0:01:22]} 20. Rxc1 {[%clk 0:01:40]}  Rc8 {[%clk 0:01:23]} 21. Rb1 {[%clk 0:01:29]}  Bb5 {[%clk 0:01:23]} 22. a4 {[%clk 0:01:23]}  Bxa4 {[%clk 0:01:14]} 23. Rxb7 {[%clk 0:01:21]}  Nd5 {[%clk 0:01:06]} 24. Bxd5 {[%clk 0:01:19]}  exd5 {[%clk 0:01:07]} 25. Rxf7 {[%clk 0:01:04]}  Ra8 {[%clk 0:01:02]} 26. f5 {[%clk 0:01:04]}  Be8 {[%clk 0:00:51]} 27. Re7 {[%clk 0:01:03]}  Kf8 {[%clk 0:00:48]} 28. f6 {[%clk 0:01:03]}  gxf6 {[%clk 0:00:45]} 29. gxf6 {[%clk 0:01:04]}  a5 {[%clk 0:00:40]} 30. Rxh7 {[%clk 0:01:01]}  Kg8 {[%clk 0:00:40]} 31. f7+ {[%clk 0:01:01]}  Bxf7 {[%clk 0:00:34]} 32. Rxf7 {[%clk 0:01:02]}  a4 {[%clk 0:00:33]} 33. Rf2 {[%clk 0:01:02]}  a3 {[%clk 0:00:30]} 34. Ra2 {[%clk 0:01:03]}  Kg7 {[%clk 0:00:29]} 35. Kf2 {[%clk 0:01:03]}  Kf6 {[%clk 0:00:29]} 36. Ke2 {[%clk 0:01:03]}  Kf5 {[%clk 0:00:29]} 37. Kd3 {[%clk 0:01:04]}  Ra6 {[%clk 0:00:25]} 38. h4 {[%clk 0:01:03]}  Rh6 {[%clk 0:00:08]} 39. Rxa3 {[%clk 0:01:02]}  Ra6 {[%clk 0:00:08]} 40. Rc3 {[%clk 0:01:00]}  Ra1 {[%clk 0:00:07]} 41. h5 {[%clk 0:00:58]}  Rd1+ {[%clk 0:00:06]} 42. Ke2 {[%clk 0:00:58]}  Rh1 {[%clk 0:00:07]} 43. Kd3 {[%clk 0:00:54]}  Rd1+ {[%clk 0:00:07]} 44. Kc2 {[%clk 0:00:55]}  Rh1 {[%clk 0:00:08]} 45. Nd3 {[%clk 0:00:46]}  Rxh5 {[%clk 0:00:07]} 46. Nf4 {[%clk 0:00:47]}  Rh1 {[%clk 0:00:06]} 47. Kd3 {[%clk 0:00:47]}  Rd1+ {[%clk 0:00:06]} 48. Ke2 {[%clk 0:00:48]}  Ra1 {[%clk 0:00:05]} 49. Nxd5 {[%clk 0:00:49]}  Ke4 {[%clk 0:00:05]} 50. Nf6+ {[%clk 0:00:49]}  Kf5 {[%clk 0:00:05]} 51. Nd7 {[%clk 0:00:50]}  Ke4 {[%clk 0:00:05]} 52. Nc5+ {[%clk 0:00:51]}  Kd5 {[%clk 0:00:06]} 53. Kd3 {[%clk 0:00:52]}  Rd1+ {[%clk 0:00:05]} 54. Kc2 {[%clk 0:00:52]}  Ra1 {[%clk 0:00:05]} 55. Rb3 {[%clk 0:00:53]}  Kc4 {[%clk 0:00:05]} 56. Rc3+ {[%clk 0:00:54]}  Kd5 {[%clk 0:00:05]} 57. Kb2 {[%clk 0:00:55]}  Rh1 {[%clk 0:00:05]} 58. Kb3 {[%clk 0:00:55]}  Rb1+ {[%clk 0:00:05]} 59. Ka4 {[%clk 0:00:54]}  Ra1+ {[%clk 0:00:06]} 60. Kb5 {[%clk 0:00:54]}  Rb1+ {[%clk 0:00:06]} 61. Rb3 {[%clk 0:00:54]}  Ra1 {[%clk 0:00:05]} 62. Rb4 {[%clk 0:00:54]}  Ra8 {[%clk 0:00:04]} 63. e4+ {[%clk 0:00:55]}  Kd6 {[%clk 0:00:04]} 64. Kc4 {[%clk 0:00:56]}  Ra1 {[%clk 0:00:03]} 65. e5+ {[%clk 0:00:57]}  Kc6 {[%clk 0:00:03]} 66. d5+ {[%clk 0:00:57]}  Kc7 {[%clk 0:00:03]} 67. Rb7+ {[%clk 0:00:58]}  Kc8 {[%clk 0:00:04]} 68. d6 {[%clk 0:00:57]}  Rd1 {[%clk 0:00:03]} 69. Rc7+ {[%clk 0:00:56]}  Kb8 {[%clk 0:00:02]} 70. Kb5 {[%clk 0:00:53]}  Rb1+ {[%clk 0:00:01]} 71. Kc6 {[%clk 0:00:53]}  Ka8 {[%clk 0:00:01]} 72. d7 {[%clk 0:00:52]} 1-0


[Site "https://www.chess.com"]

[Event "Titled Tuesday Blitz November 08 Early 2022"]
[White "Hasangatin, Ramil"]
[Black "Devaev, Alexander"]
[WhiteFideId "4122160"]
[BlackFideId "4169395"]
[WhiteElo "2362"]
[BlackElo "2225"]
[Result "0-1"]
[Round "03"]
[TimeControl "180+1"]
[Date "2022.11.09"]
[WhiteClock "0:00:03"]
[BlackClock "0:00:13"]

1. e4 {[%clk 0:03:00]}  c6 {[%clk 0:02:58]} 2. Nf3 {[%clk 0:02:59]}  d5 {[%clk 0:02:58]} 3. d3 {[%clk 0:03:00]}  Bg4 {[%clk 0:02:53]} 4. h3 {[%clk 0:02:58]}  Bxf3 {[%clk 0:02:52]} 5. Qxf3 {[%clk 0:02:59]}  e6 {[%clk 0:02:53]} 6. g3 {[%clk 0:02:57]}  Nd7 {[%clk 0:02:53]} 7. Bg2 {[%clk 0:02:58]}  g6 {[%clk 0:02:54]} 8. O-O {[%clk 0:02:54]}  Bg7 {[%clk 0:02:54]} 9. exd5 {[%clk 0:02:54]}  cxd5 {[%clk 0:02:50]} 10. c4 {[%clk 0:02:55]}  Ngf6 {[%clk 0:02:47]} 11. Nc3 {[%clk 0:02:53]}  Nb6 {[%clk 0:02:13]} 12. Bg5 {[%clk 0:02:51]}  O-O {[%clk 0:02:09]} 13. c5 {[%clk 0:02:38]}  Nc8 {[%clk 0:01:55]} 14. d4 {[%clk 0:02:38]}  h6 {[%clk 0:01:53]} 15. Bf4 {[%clk 0:02:37]}  Ne7 {[%clk 0:01:53]} 16. Rfd1 {[%clk 0:02:32]}  Nc6 {[%clk 0:01:53]} 17. Rab1 {[%clk 0:02:24]}  a5 {[%clk 0:01:31]} 18. Nb5 {[%clk 0:02:22]}  Ne4 {[%clk 0:01:20]} 19. Be3 {[%clk 0:02:22]}  Qf6 {[%clk 0:01:09]} 20. Qe2 {[%clk 0:02:13]}  h5 {[%clk 0:01:04]} 21. g4 {[%clk 0:02:10]}  hxg4 {[%clk 0:01:03]} 22. hxg4 {[%clk 0:02:11]}  Rad8 {[%clk 0:00:44]} 23. f3 {[%clk 0:02:10]}  Ng5 {[%clk 0:00:44]} 24. Rf1 {[%clk 0:02:06]}  e5 {[%clk 0:00:40]} 25. dxe5 {[%clk 0:02:02]}  Qxe5 {[%clk 0:00:40]} 26. f4 {[%clk 0:02:01]}  Qe7 {[%clk 0:00:30]} 27. Qd3 {[%clk 0:01:36]}  Ne4 {[%clk 0:00:29]} 28. f5 {[%clk 0:01:18]}  Nxc5 {[%clk 0:00:26]} 29. Qd2 {[%clk 0:01:13]}  Ne4 {[%clk 0:00:26]} 30. Qd3 {[%clk 0:01:13]}  Nb4 {[%clk 0:00:24]} 31. Qb3 {[%clk 0:01:08]}  Nc5 {[%clk 0:00:23]} 32. Bxc5 {[%clk 0:00:47]}  Qxc5+ {[%clk 0:00:23]} 33. Rf2 {[%clk 0:00:47]}  Qxb5 {[%clk 0:00:22]} 34. Rd1 {[%clk 0:00:45]}  Qc5 {[%clk 0:00:18]} 35. a3 {[%clk 0:00:41]}  Nc6 {[%clk 0:00:15]} 36. f6 {[%clk 0:00:38]}  Bh6 {[%clk 0:00:14]} 37. Rd3 {[%clk 0:00:37]}  d4 {[%clk 0:00:14]} 38. Rff3 {[%clk 0:00:31]}  Be3+ {[%clk 0:00:14]} 39. Kh2 {[%clk 0:00:31]}  Qg5 {[%clk 0:00:15]} 40. Rh3 {[%clk 0:00:21]}  Ne5 {[%clk 0:00:15]} 41. Kh1 {[%clk 0:00:20]}  Nxg4 {[%clk 0:00:14]} 42. Rd1 {[%clk 0:00:04]}  Nf2+ {[%clk 0:00:13]} 43. Kh2 {[%clk 0:00:04]}  Nxh3 {[%clk 0:00:14]} 44. Kxh3 {[%clk 0:00:04]}  Qxf6 {[%clk 0:00:13]} 45. Rf1 {[%clk 0:00:03]}  Qe6+ {[%clk 0:00:13]} 0-1


[Site "https://www.chess.com"]

[Event "Titled Tuesday Blitz November 08 Early 2022"]
[White "Jeet, Jain"]
[Black "Roque Sola, Gisela"]
[WhiteFideId "5073022"]
[BlackFideId "5120241"]
[WhiteElo "2067"]
[BlackElo "1961"]
[Result "1-0"]
[Round "03"]
[TimeControl "180+1"]
[Date "2022.11.09"]
[WhiteClock "0:00:51"]
[BlackClock "0:00:49"]

1. Nf3 {[%clk 0:03:00]}  Nf6 {[%clk 0:02:58]} 2. b3 {[%clk 0:02:59]}  e6 {[%clk 0:02:57]} 3. Bb2 {[%clk 0:03:00]}  c5 {[%clk 0:02:56]} 4. e3 {[%clk 0:03:00]}  Nc6 {[%clk 0:02:56]} 5. d4 {[%clk 0:03:00]}  d5 {[%clk 0:02:54]} 6. Bd3 {[%clk 0:03:00]}  Be7 {[%clk 0:02:52]} 7. O-O {[%clk 0:03:00]}  O-O {[%clk 0:02:51]} 8. a3 {[%clk 0:03:00]}  a6 {[%clk 0:02:48]} 9. Re1 {[%clk 0:02:53]}  b5 {[%clk 0:02:45]} 10. c4 {[%clk 0:02:53]}  bxc4 {[%clk 0:02:45]} 11. bxc4 {[%clk 0:02:54]}  cxd4 {[%clk 0:02:44]} 12. Nxd4 {[%clk 0:02:52]}  Nxd4 {[%clk 0:02:43]} 13. Bxd4 {[%clk 0:02:53]}  dxc4 {[%clk 0:02:42]} 14. Bxc4 {[%clk 0:02:54]}  Bb7 {[%clk 0:02:41]} 15. Nd2 {[%clk 0:02:47]}  Bd5 {[%clk 0:02:32]} 16. Bd3 {[%clk 0:02:42]}  Bb7 {[%clk 0:02:16]} 17. Qe2 {[%clk 0:02:40]}  Qd5 {[%clk 0:02:11]} 18. Nf3 {[%clk 0:02:33]}  Qh5 {[%clk 0:02:08]} 19. Rab1 {[%clk 0:02:30]}  Bxf3 {[%clk 0:02:06]} 20. Qxf3 {[%clk 0:02:19]}  Qxf3 {[%clk 0:02:06]} 21. gxf3 {[%clk 0:02:20]}  Bxa3 {[%clk 0:02:06]} 22. Ra1 {[%clk 0:02:16]}  Bb4 {[%clk 0:02:05]} 23. Reb1 {[%clk 0:02:01]}  a5 {[%clk 0:02:05]} 24. f4 {[%clk 0:02:01]}  Rab8 {[%clk 0:01:49]} 25. Kg2 {[%clk 0:01:58]}  Rfd8 {[%clk 0:01:45]} 26. Kf3 {[%clk 0:01:57]}  Nd5 {[%clk 0:01:43]} 27. Rg1 {[%clk 0:01:54]}  g6 {[%clk 0:01:40]} 28. h4 {[%clk 0:01:48]}  Kf8 {[%clk 0:01:37]} 29. h5 {[%clk 0:01:48]}  Ne7 {[%clk 0:01:26]} 30. hxg6 {[%clk 0:01:36]}  hxg6 {[%clk 0:01:26]} 31. Rh1 {[%clk 0:01:35]}  Ke8 {[%clk 0:01:17]} 32. Rh8+ {[%clk 0:01:25]}  Kd7 {[%clk 0:01:16]} 33. Rh7 {[%clk 0:01:26]}  Rf8 {[%clk 0:01:10]} 34. Bg7 {[%clk 0:01:24]}  Rg8 {[%clk 0:01:09]} 35. Be5 {[%clk 0:01:23]}  Rbf8 {[%clk 0:01:05]} 36. Bb5+ {[%clk 0:01:21]}  Nc6 {[%clk 0:00:57]} 37. Rc1 {[%clk 0:01:18]}  Rc8 {[%clk 0:00:55]} 38. Rxf7+ {[%clk 0:01:16]}  Ke8 {[%clk 0:00:56]} 39. Rc7 {[%clk 0:01:11]}  Rxc7 {[%clk 0:00:55]} 40. Bxc7 {[%clk 0:01:10]}  Kd7 {[%clk 0:00:53]} 41. Rxc6 {[%clk 0:01:06]}  Rc8 {[%clk 0:00:48]} 42. Rc4+ {[%clk 0:01:01]}  Ke7 {[%clk 0:00:49]} 43. Bd6+ {[%clk 0:00:56]}  Kd8 {[%clk 0:00:47]} 44. Rxc8+ {[%clk 0:00:52]}  Kxc8 {[%clk 0:00:48]} 45. Bxb4 {[%clk 0:00:52]}  axb4 {[%clk 0:00:49]} 46. Bd3 {[%clk 0:00:51]} 1-0


[Site "https://www.chess.com"]